bitfinex/quotes_SOLUSD_20251130
["timestamp","ask_amount","ask_price","bid_price","bid_amount"]
[1764495972096,0.2,136.93,136.92,84.6289807]
[1764495973409,0.2,136.93,136.92,76.36408258]
[1764495974114,0.2,136.93,136.92,73.16408258]
[1764495974316,0.92,136.93,136.92,72.16975944]
[1764495974521,0.92,136.93,136.92,75.36975944]
[1764495975538,0.2,136.93,136.92,78.13598397]
[1764495977532,0.2,136.93,136.92,78.42030711]
[1764495978022,0.2,136.94,136.93,63.08432314]
[1764495978204,0.2,136.94,136.93,65.85054767]
[1764495979800,0.2,136.94,136.93,73.1535492]
[1764495987822,0.2,136.94,136.93,72.4535492]
[1764495988829,0.2,136.94,136.93,73.1635492]
[1764495989324,0.89,136.94,136.93,72.4535492]
[1764495989716,0.2,136.94,136.93,72.4535492]
[1764495990609,0.2,136.94,136.93,73.61380815]
[1764495992324,0.2,136.94,136.93,76.81380815]
[1764495993609,0.2,136.94,136.93,77.52380815]
[1764495993931,0.2,136.94,136.93,76.81380815]
[1764495995232,0.2,136.94,136.93,73.61380815]
[1764495995433,0.2,136.94,136.93,76.81380815]
[1764495995829,0.89,136.94,136.93,76.81380815]
[1764495996532,0.89,136.94,136.93,69.22648348]
[1764495996737,0.89,136.94,136.93,66.0]
[1764495996910,0.89,136.94,136.93,69.22648348]
[1764495998812,0.89,136.94,136.93,66.0]
[1764495999016,0.89,136.94,136.93,62.8]
[1764495999924,0.89,136.94,136.92,6.42648348]
[1764496000223,0.69,136.93,136.92,6.42648348]
[1764496000556,0.69,136.93,136.91,76.53041656]
[1764496002552,0.69,136.93,136.92,10.53001839]
[1764496003164,0.69,136.93,136.91,73.33049014]
[1764496003461,0.69,136.93,136.91,76.53049014]
[1764496003758,0.69,136.93,136.92,3.22648348]
[1764496006837,0.2,136.94,136.92,10.53001839]
[1764496007028,0.69,136.93,136.92,7.30353491]
[1764496007833,0.69,136.93,136.92,70.10353491]
[1764496008262,0.69,136.93,136.92,73.33001839]
[1764496008764,0.2,136.94,136.92,73.33001839]
[1764496008943,0.89,136.94,136.93,6.42648348]
[1764496010859,0.89,136.94,136.93,13.72948501]
[1764496013158,0.89,136.94,136.93,10.50300153]
[1764496013339,0.89,136.94,136.93,13.72948501]
[1764496013744,0.89,136.94,136.93,76.52948501]
[1764496016867,0.89,136.94,136.93,73.30300153]
[1764496017369,0.89,136.94,136.93,76.52948501]
[1764496017553,0.2,136.94,136.93,76.52948501]
[1764496017754,0.2,136.94,136.93,77.18948501]
[1764496019365,0.2,136.94,136.93,76.52948501]
[1764496019549,0.2,136.94,136.93,77.18948501]
[1764496028270,0.2,136.94,136.93,77.47380815]
[1764496031986,0.2,136.97,136.95,78.908864]
[1764496032277,0.2,136.97,136.96,6.71080662]
[1764496032443,0.92,136.97,136.96,6.42648348]
[1764496033971,0.92,136.97,136.96,13.72788534]
[1764496037474,0.92,136.97,136.96,76.32788534]
[1764496038873,0.92,136.97,136.96,73.12788534]
[1764496039052,0.92,136.97,136.96,76.32788534]
[1764496044977,0.92,136.97,136.96,62.6]
[1764496046562,0.92,136.97,136.92,3.22648348]
[1764496046762,0.7,136.96,136.92,6.42648348]
[1764496047156,6.55163613,136.95,136.92,6.42648348]
[1764496047763,0.7,136.94,136.91,10.53055184]
[1764496047971,0.7,136.94,136.92,3.2]
[1764496048373,0.7,136.94,136.92,6.42648348]
[1764496049888,0.7,136.94,136.92,3.2]
[1764496052188,0.7,136.94,136.92,5.26648694]
[1764496052380,0.7,136.94,136.92,67.86648694]
[1764496053695,14.55358354,136.94,136.92,67.86648694]
[1764496053993,0.7,136.93,136.92,67.86648694]
[1764496054495,0.7,136.93,136.92,64.66648694]
[1764496055401,0.7,136.93,136.92,62.6]
[1764496056789,22.60751781,136.93,136.89,62.6]
[1764496057090,22.60751781,136.93,136.89,64.66648694]
[1764496057288,0.7,136.92,136.89,64.66648694]
[1764496057588,0.7,136.92,136.89,71.97159162]
[1764496058468,0.7,136.92,136.89,69.90510468]
[1764496058796,0.7,136.92,136.89,71.97159162]
[1764496062500,0.7,136.92,136.89,7.30510468]
[1764496062803,22.60751781,136.92,136.89,9.37159162]
[1764496063093,0.7,136.91,136.89,9.37159162]
[1764496063295,0.7,136.91,136.89,72.17159162]
[1764496066984,0.7,136.91,136.89,70.10510468]
[1764496068408,0.7,136.91,136.88,62.8]
[1764496068610,2.06648694,136.9,136.86,62.8]
[1764496068913,2.06648694,136.89,136.86,62.8]
[1764496069207,0.7,136.89,136.86,62.8]
[1764496069424,2.06648694,136.9,136.86,62.8]
[1764496069425,0.7,136.88,136.86,62.8]
[1764496069584,18.95768453,136.88,136.86,62.8]
[1764496069906,18.95768453,136.88,136.86,72.86311387]
[1764496069907,18.25768453,136.88,136.86,72.86311387]
[1764496070220,0.7,136.88,136.87,2.06648694]
[1764496070902,0.7,136.89,136.87,2.06648694]
[1764496071104,0.7,136.89,136.88,2.06648694]
[1764496073310,0.7,136.89,136.88,62.8]
[1764496076816,8.00513551,136.89,136.88,62.8]
[1764496077189,26.26530642,136.89,136.88,62.8]
[1764496078928,0.7,136.89,136.88,62.8]
[1764496079109,0.7,136.89,136.86,66.0]
[1764496079632,0.7,136.89,136.86,68.06648694]
[1764496080521,0.7,136.89,136.86,66.0]
[1764496080895,22.65630694,136.89,136.86,66.0]
[1764496081100,0.69,136.88,136.86,66.0]
[1764496081600,0.69,136.88,136.86,68.06648694]
[1764496082121,7.30478257,136.9,136.87,0.67]
[1764496082295,0.69,136.89,136.88,2.06648694]
[1764496082495,29.26108951,136.9,136.88,2.06648694]
[1764496082496,0.69,136.9,136.88,2.06648694]
[1764496082696,0.69,136.89,136.88,2.06648694]
[1764496084323,0.69,136.89,136.87,5.28648694]
[1764496084925,0.69,136.89,136.87,68.08648694]
[1764496087124,0.69,136.9,136.87,68.75648694]
[1764496087634,21.95470013,136.91,136.88,10.04215613]
[1764496087930,0.69,136.9,136.88,9.37215613]
[1764496088432,0.69,136.9,136.88,10.04215613]
[1764496088618,22.64470013,136.91,136.88,10.04215613]
[1764496089528,0.69,136.9,136.88,9.37215613]
[1764496090027,0.69,136.9,136.88,10.04215613]
[1764496090631,21.95470013,136.91,136.89,2.73648694]
[1764496090819,0.69,136.91,136.89,65.53648694]
[1764496091132,0.69,136.91,136.89,64.86648694]
[1764496091907,0.69,136.91,136.89,62.8]
[1764496092306,0.69,136.91,136.89,66.02]
[1764496093635,0.69,136.93,136.9,2.73648694]
[1764496093830,0.69,136.92,136.9,2.73648694]
[1764496094827,0.69,136.92,136.9,3.22]
[1764496099219,0.69,136.92,136.89,10.04161097]
[1764496099412,0.69,136.92,136.89,13.24161097]
[1764496102838,0.69,136.92,136.89,76.04161097]
[1764496106545,0.69,136.92,136.89,73.97512403]
[1764496106919,0.69,136.92,136.89,76.04161097]
[1764496110550,0.69,136.92,136.89,77.20495669]
[1764496114636,7.99366533,136.92,136.89,62.8]
[1764496115037,0.69,136.91,136.89,62.8]
[1764496120633,0.69,136.91,136.88,11.19546487]
[1764496120634,0.69,136.91,136.88,73.99546487]
[1764496121137,0.69,136.91,136.86,10.50656334]
[1764496121138,3.22983266,136.9,136.86,10.50656334]
[1764496121656,0.69,136.89,136.86,10.50656334]
[1764496121865,0.69,136.89,136.85,73.33700333]
[1764496122084,0.69,136.89,136.85,76.53700333]
[1764496122229,0.69,136.89,136.84,3.88983266]
[1764496122436,3.91983266,136.89,136.84,7.08983266]
[1764496122763,3.91983266,136.89,136.84,3.86]
[1764496122965,0.69,136.88,136.84,3.86]
[1764496123130,7.30620296,136.87,136.84,3.86]
[1764496123330,7.30620296,136.87,136.84,7.08983266]
[1764496123563,7.30620296,136.87,136.84,3.88983266]
[1764496123737,7.99620296,136.87,136.84,3.88983266]
[1764496124058,0.69,136.86,136.83,10.53803006]
[1764496124226,0.69,136.86,136.84,0.66]
[1764496124630,0.69,136.86,136.84,3.88983266]
[1764496127254,0.69,136.86,136.84,3.22983266]
[1764496128062,0.69,136.86,136.83,73.9681974]
[1764496128254,0.69,136.86,136.84,3.22983266]
[1764496128755,7.99693742,136.86,136.83,66.02983266]
[1764496128970,7.99693742,136.86,136.82,6.44983266]
[1764496129134,0.69,136.85,136.82,7.10983266]
[1764496130055,0.69,136.85,136.83,3.22983266]
[1764496130356,0.69,136.85,136.83,3.88983266]
[1764496130761,0.69,136.86,136.84,3.22983266]
[1764496131455,0.69,136.86,136.83,3.88983266]
[1764496134366,0.69,136.86,136.84,3.22983266]
[1764496138665,0.69,136.86,136.83,73.9981029]
[1764496140559,0.69,136.87,136.84,3.91983266]
[1764496141572,0.69,136.87,136.84,66.71983266]
[1764496141771,3.91983266,136.87,136.84,62.8]
[1764496142272,0.69,136.86,136.84,62.8]
[1764496142657,0.69,136.86,136.83,7.30815817]
[1764496143049,0.69,136.86,136.83,7.99815817]
[1764496143253,0.69,136.86,136.83,11.22799083]
[1764496144373,0.69,136.86,136.83,7.99815817]
[1764496144846,0.69,136.86,136.83,7.30815817]
[1764496145776,7.99677976,136.86,136.82,74.02853684]
[1764496146274,7.99677976,136.86,136.83,0.69]
[1764496146570,0.69,136.85,136.83,0.69]
[1764496147586,7.99731754,136.85,136.81,73.33905497]
[1764496147753,7.99731754,136.85,136.81,73.32922231]
[1764496147956,3.91983266,136.84,136.79,4.11983266]
[1764496148155,0.69,136.83,136.79,7.33983266]
[1764496148857,0.69,136.83,136.79,14.6501852]
[1764496149376,7.99885302,136.83,136.79,7.33983266]
[1764496149882,0.69,136.82,136.79,7.33983266]
[1764496150180,0.69,136.82,136.79,4.11983266]
[1764496150481,0.69,136.82,136.79,11.43026318]
[1764496150775,0.69,136.82,136.79,8.20043052]
[1764496150977,0.69,136.82,136.79,11.43026318]
[1764496151178,0.69,136.82,136.79,4.11983266]
[1764496151378,0.69,136.82,136.8,0.69]
[1764496151878,0.69,136.82,136.79,4.11983266]
[1764496152068,3.22983266,136.81,136.79,0.2]
[1764496152481,7.99994152,136.8,136.79,0.2]
[1764496153453,10.9293787,136.8,136.79,0.2]
[1764496155387,14.15921136,136.8,136.79,0.2]
[1764496155567,10.9293787,136.8,136.79,0.2]
[1764496157185,14.15921136,136.8,136.79,0.2]
[1764496157363,10.9293787,136.8,136.79,0.2]
[1764496157868,2.92943718,136.8,136.79,0.2]
[1764496158065,0.69,136.8,136.79,0.2]
[1764496159885,7.99994152,136.8,136.79,0.2]
[1764496161598,10.9293787,136.8,136.79,0.2]
[1764496166574,7.99994152,136.8,136.79,0.2]
[1764496167773,7.30994152,136.8,136.79,0.2]
[1764496168703,7.97994152,136.8,136.79,0.2]
[1764496170404,21.97077886,136.81,136.79,0.91]
[1764496170582,7.97566919,136.88,136.8,6.44983266]
[1764496170899,7.97566919,136.88,136.85,3.22983266]
[1764496171082,7.97566919,136.88,136.8,3.93]
[1764496171083,7.97566919,136.88,136.84,3.22983266]
[1764496171690,7.97566919,136.88,136.84,3.93983266]
[1764496172400,7.30572762,136.88,136.85,3.93983266]
[1764496172581,7.97572762,136.88,136.85,2.77838265]
[1764496172782,0.67,136.87,136.85,2.77838265]
[1764496172983,0.67,136.87,136.85,0.71]
[1764496173493,0.67,136.87,136.84,2.06838265]
[1764496173689,0.67,136.87,136.84,2.77838265]
[1764496174091,0.67,136.87,136.85,0.71]
[1764496175192,7.97572762,136.88,136.85,0.71]
[1764496175506,7.30572762,136.88,136.85,0.71]
[1764496175712,0.67,136.87,136.85,0.71]
[1764496177405,0.67,136.87,136.85,2.77838265]
[1764496177608,0.67,136.87,136.85,2.06838265]
[1764496178109,17.83090938,136.89,136.85,2.77838265]
[1764496178289,0.67,136.87,136.85,2.77838265]
[1764496179114,0.67,136.87,136.84,10.08618035]
[1764496179507,0.67,136.87,136.85,0.71]
[1764496180130,0.67,136.87,136.85,2.77838265]
[1764496180605,0.67,136.87,136.85,2.06838265]
[1764496181517,0.67,136.87,136.84,8.0177977]
[1764496181809,7.97624427,136.87,136.83,2.06838265]
[1764496182010,5.28838265,136.86,136.82,7.30846655]
[1764496182314,5.95838265,136.86,136.82,7.30846655]
[1764496182507,0.67,136.85,136.82,7.30846655]
[1764496182809,0.67,136.85,136.82,8.01846655]
[1764496183010,11.19677341,136.86,136.83,0.71]
[1764496183999,11.19677341,136.86,136.83,2.77838265]
[1764496184202,0.67,136.87,136.85,2.06838265]
[1764496184898,10.52590814,136.88,136.85,2.77838265]
[1764496185126,11.19590814,136.88,136.85,2.77838265]
[1764496186110,11.19590814,136.88,136.85,0.71]
[1764496188106,0.67,136.87,136.84,2.77838265]
[1764496189016,0.67,136.87,136.84,72.88597113]
[1764496189615,11.19590814,136.88,136.85,0.71]
[1764496190115,7.30785575,136.89,136.85,8.01706582]
[1764496190322,16.308864,136.9,136.85,10.08544847]
[1764496190499,0.67,136.88,136.85,9.37544847]
[1764496190699,0.67,136.88,136.86,0.71]
[1764496191315,0.67,136.89,136.86,0.71]
[1764496192497,10.04362185,136.89,136.84,10.08613558]
[1764496192697,10.04362185,136.89,136.84,8.01775293]
[1764496192897,0.67,136.88,136.84,8.01775293]
[1764496193197,0.67,136.88,136.85,0.71]
[1764496193829,0.67,136.88,136.84,8.01775293]
[1764496194916,0.67,136.88,136.84,10.08613558]
[1764496195125,7.97571519,136.88,136.84,8.01775293]
[1764496195609,0.69,136.87,136.84,8.01775293]
[1764496195916,0.69,136.87,136.84,70.81775293]
[1764496196807,0.69,136.87,136.84,70.10775293]
[1764496196998,0.69,136.87,136.84,70.82775293]
[1764496197203,0.69,136.87,136.84,70.10775293]
[1764496197508,0.69,136.87,136.85,0.72]
[1764496198109,7.30533435,136.89,136.85,0.72]
[1764496198308,0.69,136.88,136.85,8.02717064]
[1764496200923,0.69,136.88,136.85,70.82717064]
[1764496203021,0.69,136.88,136.85,70.10717064]
[1764496203203,0.69,136.88,136.86,0.72]
[1764496203405,0.69,136.88,136.85,70.10717064]
[1764496203623,0.69,136.88,136.85,70.82717064]
[1764496204317,0.69,136.88,136.86,0.72]
[1764496205028,10.52533435,136.89,136.86,0.72]
[1764496205328,0.69,136.88,136.86,0.72]
[1764496206725,10.52533435,136.89,136.86,0.72]
[1764496206927,11.21533435,136.89,136.86,0.72]
[1764496207232,10.52533435,136.89,136.86,0.72]
[1764496207527,0.69,136.88,136.85,70.10717064]
[1764496207709,0.69,136.88,136.85,70.82717064]
[1764496208134,10.52533435,136.89,136.86,0.72]
[1764496208433,11.21533435,136.89,136.86,0.72]
[1764496209343,3.22,136.89,136.86,10.09509502]
[1764496209530,7.99427672,136.91,136.86,72.89509502]
[1764496209715,0.69,136.9,136.87,0.72]
[1764496211329,0.69,136.9,136.87,8.02617306]
[1764496211528,3.22,136.91,136.87,10.09455571]
[1764496211728,3.22,136.91,136.88,0.72]
[1764496212115,3.91,136.91,136.88,0.72]
[1764496212635,3.22,136.91,136.88,0.72]
[1764496213012,3.91,136.91,136.88,0.72]
[1764496213642,0.69,136.9,136.88,0.72]
[1764496213822,0.69,136.9,136.87,70.82617306]
[1764496214019,2.75838265,136.9,136.87,62.8]
[1764496214412,0.69,136.89,136.87,62.8]
[1764496215116,0.69,136.89,136.87,63.52]
[1764496215942,0.69,136.9,136.87,0.72]
[1764496216144,0.69,136.9,136.88,0.72]
[1764496216638,3.22,136.91,136.88,0.72]
[1764496216816,3.91,136.91,136.88,0.72]
[1764496217346,11.21407767,136.91,136.88,0.72]
[1764496218621,25.68063945,136.93,136.88,8.02562938]
[1764496218827,27.5222568,136.93,136.88,10.09401203]
[1764496219028,0.69,136.92,136.89,0.72]
[1764496220056,7.99358646,136.92,136.89,0.72]
[1764496224566,7.30358646,136.92,136.89,2.78838265]
[1764496224940,7.30358646,136.92,136.9,0.72]
[1764496225456,7.98358646,136.92,136.9,0.72]
[1764496225846,7.98358646,136.92,136.89,0.66]
[1764496226165,7.98358646,136.92,136.88,12.59401203]
[1764496226363,7.98358646,136.92,136.9,0.66]
[1764496230869,0.68,136.92,136.9,0.66]
[1764496231265,0.68,136.92,136.89,7.30507434]
[1764496231454,3.89,136.93,136.9,0.71]
[1764496232466,3.89,136.93,136.9,8.01459855]
[1764496234766,3.22,136.93,136.9,8.01459855]
[1764496234955,0.67,136.92,136.9,8.01459855]
[1764496236574,0.67,136.92,136.9,70.81459855]
[1764496239465,0.67,136.92,136.9,62.8]
[1764496239667,3.22991793,136.91,136.9,62.8]
[1764496239863,3.22991793,136.91,136.86,0.71]
[1764496240063,3.89991793,136.9,136.86,0.71]
[1764496240582,0.67,136.89,136.86,0.71]
[1764496240958,0.67,136.9,136.86,8.0166454]
[1764496241469,0.67,136.9,136.87,0.71]
[1764496242092,0.67,136.9,136.87,8.01618806]
[1764496245383,0.67,136.9,136.88,0.71]
[1764496246969,0.67,136.9,136.87,70.81618806]
[1764496250986,6.44991793,136.89,136.84,7.30745793]
[1764496251186,6.44991793,136.89,136.85,0.71]
[1764496251483,0.67,136.88,136.85,0.71]
[1764496254703,11.20564291,136.88,136.83,0.71]
[1764496254883,0.67,136.87,136.83,0.71]
[1764496255497,0.67,136.87,136.83,8.01829179]
[1764496255798,0.67,136.87,136.84,8.00778094]
[1764496260391,0.67,136.87,136.84,70.80778094]
[1764496261519,0.67,136.87,136.84,70.10778094]
[1764496261689,0.67,136.87,136.84,70.80778094]
[1764496262886,7.97649836,136.87,136.84,62.8]
[1764496263093,11.20641629,136.87,136.84,62.8]
[1764496263336,0.7,136.86,136.84,62.8]
[1764496263917,3.92991793,136.86,136.84,62.8]
[1764496264104,0.7,136.85,136.84,62.8]
[1764496264305,0.7,136.85,136.82,63.5]
[1764496264817,0.7,136.85,136.83,0.7]
[1764496265533,0.7,136.85,136.82,63.5]
[1764496265820,0.7,136.85,136.83,0.7]
[1764496267717,0.7,136.85,136.82,70.10883378]
[1764496267915,8.00740533,136.85,136.82,0.7]
[1764496268111,14.45667521,136.86,136.83,0.7]
[1764496268307,0.7,136.85,136.83,0.7]
[1764496269123,3.22,136.86,136.83,0.7]
[1764496269322,16.308864,136.88,136.83,3.92991793]
[1764496269323,20.23878193,136.88,136.83,3.92991793]
[1764496269624,0.7,136.87,136.83,3.92991793]
[1764496269807,0.7,136.87,136.84,0.7]
[1764496270724,0.7,136.87,136.84,8.00771054]
[1764496270913,16.308864,136.88,136.84,8.00771054]
[1764496271222,3.92,136.89,136.85,0.7]
[1764496271815,3.92,136.89,136.85,8.00718031]
[1764496272224,11.22520037,136.89,136.85,8.00718031]
[1764496272431,11.22520037,136.89,136.86,0.7]
[1764496272603,10.52520037,136.89,136.86,0.7]
[1764496273127,11.22520037,136.89,136.86,0.7]
[1764496273528,8.00520037,136.89,136.86,0.7]
[1764496276035,3.22991793,136.9,136.86,8.00655094]
[1764496276341,11.22414953,136.91,136.86,11.23646887]
[1764496276522,3.92,136.91,136.87,3.92991793]
[1764496277032,7.30368652,136.92,136.88,0.7]
[1764496277225,8.00368652,136.92,136.88,63.5]
[1764496277407,8.00368652,136.92,136.89,0.7]
[1764496277824,0.7,136.92,136.89,63.5]
[1764496279543,30.06196414,136.93,136.9,0.7]
[1764496279919,0.7,136.92,136.9,0.7]
[1764496280133,0.7,136.92,136.89,63.5]
[1764496282844,0.7,136.92,136.89,62.8]
[1764496283234,0.7,136.92,136.89,63.5]
[1764496285260,26.83204621,136.93,136.9,0.7]
[1764496285543,11.24318221,136.93,136.9,0.7]
[1764496287622,3.22,136.93,136.9,66.72991793]
[1764496287826,3.22,136.93,136.91,0.7]
[1764496288027,3.22,136.93,136.91,63.5]
[1764496288227,8.02267824,136.94,136.91,63.5]
[1764496288546,0.72,136.93,136.91,63.5]
[1764496288735,8.02267824,136.94,136.91,63.5]
[1764496290553,0.72,136.94,136.91,70.80406707]
[1764496303286,2.78690022,136.94,136.91,70.80406707]
[1764496303866,9.36975722,136.94,136.91,62.8]
[1764496304063,2.78690022,136.93,136.91,62.8]
[1764496304570,0.72,136.92,136.91,62.8]
[1764496304867,0.72,136.92,136.89,70.80470532]
[1764496305969,0.72,136.92,136.9,0.7]
[1764496307068,0.72,136.92,136.89,70.10470532]
[1764496307371,0.72,136.92,136.89,70.80470532]
[1764496308473,8.0236237,136.92,136.89,62.8]
[1764496308970,0.72,136.91,136.89,63.5]
[1764496309877,7.3036237,136.92,136.89,62.8]
[1764496310076,8.0236237,136.92,136.89,63.5]
[1764496311171,10.5224391,136.95,136.89,2.06690022]
[1764496311366,0.72,136.94,136.9,0.7]
[1764496312467,8.022836,136.94,136.9,0.7]
[1764496313077,2.06690022,136.92,136.88,0.7]
[1764496313258,2.06690022,136.92,136.87,10.50576245]
[1764496313463,2.78690022,136.92,136.89,0.7]
[1764496314464,0.72,136.91,136.88,8.00552104]
[1764496314656,0.72,136.91,136.88,0.7]
[1764496314856,0.72,136.91,136.87,0.7]
[1764496315076,2.78690022,136.91,136.87,0.7]
[1764496315276,0.72,136.91,136.87,0.7]
[1764496315486,0.68,136.91,136.87,0.7]
[1764496317188,0.68,136.91,136.87,8.00590174]
[1764496317369,0.68,136.91,136.88,0.7]
[1764496318486,7.98408938,136.91,136.88,0.7]
[1764496319688,7.98408938,136.91,136.88,63.5]
[1764496320483,0.68,136.9,136.88,63.5]
[1764496321090,7.30408938,136.91,136.88,63.5]
[1764496321259,7.98408938,136.91,136.88,63.5]
[1764496322686,7.98408938,136.91,136.89,0.7]
[1764496322892,7.30408938,136.91,136.89,0.7]
[1764496323062,7.98408938,136.91,136.89,0.7]
[1764496323688,7.98408938,136.91,136.88,65.56690022]
[1764496323864,7.98408938,136.91,136.88,63.5]
[1764496325908,7.98408938,136.91,136.88,62.8]
[1764496326186,7.98408938,136.91,136.88,63.5]
[1764496331061,7.98408938,136.91,136.89,0.7]
[1764496332205,7.98408938,136.91,136.88,62.8]
[1764496332413,7.98408938,136.91,136.88,63.5]
[1764496334111,3.22,136.92,136.89,0.7]
[1764496334412,0.68,136.93,136.89,2.76690022]
[1764496334611,55.96668948,136.94,136.88,72.17205411]
[1764496334820,0.68,136.92,136.89,0.7]
[1764496336228,7.98363601,136.92,136.89,0.7]
[1764496340609,7.98363601,136.92,136.89,63.5]
[1764496344434,7.98300153,136.93,136.9,0.7]
[1764496344814,7.30300153,136.93,136.89,64.86690022]
[1764496345117,0.68,136.92,136.89,65.56690022]
[1764496345306,0.68,136.92,136.9,0.7]
[1764496345622,7.30300153,136.93,136.9,2.76690022]
[1764496345815,7.30300153,136.93,136.9,0.7]
[1764496345997,8.00300153,136.93,136.9,0.7]
[1764496346397,8.00300153,136.93,136.9,63.5]
[1764496347628,7.30300153,136.93,136.9,64.86690022]
[1764496347919,7.30300153,136.93,136.91,0.71]
[1764496348130,8.01300153,136.93,136.91,0.71]
[1764496349514,8.01300153,136.93,136.9,64.86690022]
[1764496349825,8.01300153,136.93,136.9,63.51]
[1764496350224,7.30300153,136.93,136.9,63.51]
[1764496350530,0.71,136.92,136.9,62.8]
[1764496353125,8.01367506,136.92,136.9,62.8]
[1764496353328,0.71,136.91,136.9,62.8]
[1764496354516,11.21406836,136.91,136.9,62.8]
[1764496358526,11.21406836,136.91,136.88,0.71]
[1764496358736,0.71,136.9,136.88,0.71]
[1764496362742,0.71,136.9,136.87,74.04715169]
[1764496363038,0.71,136.9,136.87,70.81612483]
[1764496365246,29.97091655,136.9,136.86,8.01663049]
[1764496365622,0.71,136.89,136.86,7.30663049]
[1764496365817,0.71,136.89,136.87,0.71]
[1764496366730,7.30460961,136.9,136.87,11.24722975]
[1764496366928,8.01460961,136.9,136.87,11.24722975]
[1764496367132,7.30460961,136.9,136.88,0.71]
[1764496367330,8.01460961,136.9,136.88,0.71]
[1764496367638,3.2,136.91,136.88,66.74102686]
[1764496367846,7.30390466,136.92,136.89,3.23102686]
[1764496368019,7.30390466,136.92,136.89,3.94102686]
[1764496368341,8.01390466,136.92,136.9,0.71]
[1764496371842,8.01390466,136.92,136.89,0.71]
[1764496373147,8.01390466,136.92,136.89,63.51]
[1764496374055,0.71,136.91,136.89,62.8]
[1764496374227,7.16102686,136.91,136.85,3.23102686]
[1764496374426,25.1873338,136.9,136.85,63.51]
[1764496374622,3.22,136.89,136.85,63.51]
[1764496374923,3.93,136.89,136.85,63.51]
[1764496375123,0.71,136.88,136.85,63.51]
[1764496375844,8.01571421,136.88,136.85,62.8]
[1764496376451,8.01571421,136.88,136.85,63.52]
[1764496378224,0.69,136.87,136.85,62.8]
[1764496380446,11.21625063,136.87,136.84,0.72]
[1764496380750,11.21625063,136.87,136.83,8.02818978]
[1764496380970,0.69,136.86,136.83,8.02818978]
[1764496381121,0.69,136.86,136.84,0.72]
[1764496384848,10.52625063,136.87,136.84,0.72]
[1764496385154,11.21625063,136.87,136.84,0.72]
[1764496388052,10.52625063,136.87,136.84,0.72]
[1764496389041,11.21625063,136.87,136.84,0.72]
[1764496389856,7.99625063,136.87,136.84,0.72]
[1764496391059,7.99625063,136.87,136.84,63.52]
[1764496391262,7.99625063,136.87,136.85,0.72]
[1764496391576,11.21532486,136.89,136.85,0.72]
[1764496392158,0.69,136.88,136.85,0.72]
[1764496393465,7.99573931,136.88,136.85,0.72]
[1764496394450,10.52533714,136.89,136.85,0.72]
[1764496394760,0.69,136.88,136.85,0.72]
[1764496395163,0.69,136.88,136.85,8.02726243]
[1764496395463,10.52533714,136.89,136.86,0.72]
[1764496395640,0.69,136.88,136.86,0.72]
[1764496396959,7.99569475,136.88,136.86,0.72]
[1764496399161,11.21516559,136.89,136.86,0.72]
[1764496400062,10.52516559,136.89,136.86,0.72]
[1764496400264,0.69,136.88,136.86,0.72]
[1764496401940,3.22,136.89,136.86,8.02656399]
[1764496402139,3.91,136.89,136.86,8.02656399]
[1764496402842,3.91,136.89,136.86,70.82656399]
[1764496403494,3.91,136.89,136.86,62.8]